bitfinex-derivatives/quotes_ETHF0:USTF0_20241105
["timestamp","ask_amount","ask_price","bid_price","bid_amount"]
[1730825480209,0.6585,2457.8,2457.3,0.02681]
[1730825480411,0.6585,2457.8,2457.6,0.40699]
[1730825480712,40.8,2457.7,2457.6,0.40699]
[1730825481310,40.8,2457.7,2457.5,0.407]
[1730825481618,40.8,2457.7,2457.4,0.40701]
[1730825481814,40.8,2457.7,2457.3,0.02681]
[1730825482023,40.8,2457.7,2457.6,0.40699]
[1730825482721,10.71848953,2458.1,2457.6,4.0688]
[1730825483020,7.42132824,2458.1,2457.7,0.40696]
[1730825483315,40.8,2458.0,2457.7,0.40696]
[1730825483519,40.8,2458.0,2457.9,0.40694]
[1730825483815,40.8,2458.0,2457.8,3.91276226]
[1730825483816,3.81341824,2458.3,2458.1,0.4069]
[1730825484314,40.8,2458.2,2458.1,0.4069]
[1730825484519,40.8,2458.2,2458.0,0.40692]
[1730825484711,4.22029824,2458.3,2457.9,0.40693]
[1730825484912,3.58180824,2458.2,2457.9,0.40693]
[1730825485112,3.17491824,2458.2,2458.0,0.40692]
[1730825485314,44.61341824,2458.3,2457.8,3.91276226]
[1730825485508,44.61341824,2458.3,2458.1,0.4069]
[1730825485711,44.61341824,2458.3,2457.8,3.91276226]
[1730825485920,40.8,2458.3,2458.2,0.40689]
[1730825486121,6.78957824,2458.4,2458.1,0.4069]
[1730825486329,6.38271824,2458.4,2458.2,0.40689]
[1730825486620,0.40688,2458.3,2458.0,0.40692]
[1730825486925,3.17491824,2458.3,2457.8,3.91276226]
[1730825487417,3.17491824,2458.3,2458.1,0.40689]
[1730825487613,3.17491824,2458.3,2457.8,3.91276226]
[1730825487810,3.17491824,2458.5,2458.1,3.91276226]
[1730825488013,3.17491824,2458.6,2458.3,3.2078]
[1730825488219,3.80791824,2458.8,2458.6,0.40682]
[1730825488421,0.633,2458.8,2458.6,0.40682]
[1730825488618,0.633,2458.8,2458.4,0.40685]
[1730825488813,0.633,2458.8,2458.3,3.8346]
[1730825488814,0.633,2458.8,2458.3,3.2078]
[1730825489014,0.40682,2458.7,2458.3,0.40687]
[1730825489421,0.40684,2458.6,2458.2,1.84588]
[1730825489623,3.58173824,2458.7,2458.3,0.40687]
[1730825489921,0.40682,2458.7,2458.3,0.40687]
[1730825490122,3.80791824,2458.8,2458.2,1.439]
[1730825490327,4.21471824,2458.8,2458.4,0.40685]
[1730825490526,3.80791824,2458.8,2458.2,1.439]
[1730825490717,0.633,2458.8,2458.2,1.439]
[1730825490914,1.03979,2458.8,2458.4,0.40685]
[1730825491123,0.633,2458.8,2458.2,1.439]
[1730825491317,43.97491824,2458.9,2458.2,1.439]
[1730825491318,40.8,2458.9,2458.8,0.40679]
[1730825491625,7.03291824,2459.0,2458.9,0.40677]
[1730825491626,3.2078,2459.0,2458.9,0.40677]
[1730825492018,3.2078,2459.0,2458.9,4.47317]
[1730825492417,4.11075129,2459.5,2458.9,8.7122]
[1730825492418,3.17491824,2459.5,2458.9,8.7122]
[1730825492622,8.22447129,2459.7,2458.9,8.7122]
[1730825492623,3.58158824,2459.6,2459.2,0.40671]
[1730825492823,3.17491824,2459.6,2459.3,0.40671]
[1730825493324,7.69531824,2459.7,2459.2,0.40672]
[1730825493524,1.3126,2459.7,2459.3,0.40669]
[1730825493821,1.71925,2459.7,2459.3,0.4067]
[1730825494125,0.40666,2459.6,2459.2,0.40672]
[1730825494326,1.71925,2459.7,2459.2,0.40672]
[1730825494829,0.40668,2459.5,2459.1,3.91276226]
[1730825495027,1.3126,2459.7,2458.9,5.2867]
[1730825495028,7.69531824,2459.7,2458.9,5.2867]
[1730825495223,7.69531824,2459.7,2458.5,0.21849779]
[1730825495224,3.2078,2459.4,2458.5,3.91276226]
[1730825495423,0.40675,2459.1,2458.6,0.40682]
[1730825495629,0.40677,2458.9,2458.5,0.40683]
[1730825495926,1.67697,2459.0,2458.5,0.40683]
[1730825496521,4.34247129,2459.3,2458.9,0.40677]
[1730825496522,3.58163824,2459.3,2458.9,0.40677]
[1730825496724,3.58163824,2459.3,2458.8,4.31954226]
[1730825497025,3.17491824,2459.3,2458.9,0.40677]
[1730825497225,3.17491824,2459.4,2459.0,0.40675]
[1730825497431,4.88468,2459.5,2459.0,0.40675]
[1730825498023,4.88468,2459.5,2459.1,0.40673]
[1730825498328,4.78188036,2459.2,2459.1,0.40673]
[1730825498625,4.78188036,2459.2,2459.0,0.40675]
[1730825498831,4.78188036,2459.2,2459.0,0.40674]
[1730825498832,4.24949723,2459.1,2459.0,0.40674]
[1730825499022,4.24949723,2459.1,2459.0,3.61454]
[1730825499222,3.71809536,2459.1,2459.0,7.68096]
[1730825500233,3.71809536,2459.1,2459.0,3.61456]
[1730825500529,3.71809536,2459.2,2459.0,7.2742]
[1730825500724,3.71809536,2459.2,2459.1,0.40674]
[1730825500919,4.24949723,2459.3,2459.0,3.2078]
[1730825501118,4.78188036,2459.4,2459.0,3.2078]
[1730825501322,3.71595401,2459.1,2459.0,3.61456]
[1730825504132,3.71595401,2459.1,2458.8,1.84378]
[1730825504331,1.3072,2459.0,2458.9,0.40677]
[1730825504534,3.71595401,2459.1,2459.0,0.40676]
[1730825505531,44.51595401,2459.1,2459.0,0.40676]
[1730825505842,3.71595401,2459.1,2459.0,0.40676]
[1730825506829,3.71595401,2459.1,2458.9,0.40677]
[1730825507225,3.71595401,2459.1,2459.0,0.40676]
[1730825507422,4.24680459,2459.2,2459.1,0.40674]
[1730825508129,4.24680459,2459.2,2459.1,4.47314]
[1730825508630,3.87061036,2459.4,2459.3,0.40671]
[1730825508933,5.83505906,2460.2,2460.1,0.40658]
[1730825509235,5.83505906,2460.2,2460.1,5.05138]
[1730825509830,5.83505906,2460.2,2460.1,13.02894226]
[1730825510529,5.83505906,2460.2,2460.1,9.11618]
[1730825510737,0.6359,2460.7,2460.1,13.02894226]
[1730825510931,0.6359,2460.7,2460.1,8.55756226]
[1730825510932,41.4359,2460.7,2460.1,8.55756226]
[1730825511235,45.05019,2460.7,2460.1,3.2078]
[1730825511622,44.6437,2460.7,2460.1,3.2078]
[1730825511835,0.40652,2460.5,2460.1,3.2078]
[1730825512036,44.6437,2460.7,2460.1,3.2078]
[1730825512037,0.622,2460.4,2460.1,3.2078]
[1730825512734,0.622,2460.4,2460.1,7.52713226]
[1730825513129,0.622,2460.4,2460.1,3.2078]
[1730825513734,44.6437,2460.7,2460.2,4.31930226]
[1730825513938,44.6437,2460.7,2460.5,3.91276226]
[1730825514129,44.6437,2460.7,2460.4,3.2078]
[1730825514130,41.4359,2460.7,2460.4,3.2078]
[1730825514536,41.4359,2460.7,2460.4,3.61432]
[1730825515339,41.4359,2460.7,2460.4,3.2078]
[1730825515535,0.6359,2460.7,2460.6,0.40649]
[1730825516035,0.6359,2460.7,2460.6,4.47049]
[1730825516438,0.6359,2460.7,2460.6,0.40649]
[1730825517442,0.6359,2460.7,2460.6,4.47049]
[1730825517639,40.8,2461.0,2460.6,4.064]
[1730825517843,40.8,2461.0,2460.0,2.45347]
[1730825517844,40.8,2461.0,2460.9,4.31920226]
[1730825518138,0.6334,2461.2,2460.9,3.91276226]
[1730825518643,41.4385,2461.1,2460.9,4.31920226]
[1730825518841,0.40632,2461.7,2461.2,0.40638]
[1730825519038,0.6189,2461.5,2461.3,3.91276226]
[1730825519237,40.8,2461.4,2461.3,3.91276226]
[1730825520040,0.4063,2461.8,2461.3,4.31913226]
[1730825520243,0.6189,2461.4,2461.3,4.31913226]
[1730825520441,0.6189,2461.4,2461.3,5.75513226]
[1730825521038,0.6189,2461.4,2461.3,3.91276226]
[1730825521344,0.40642,2461.1,2460.9,3.2078]
[1730825521535,40.8,2461.7,2461.0,3.91276226]
[1730825521739,40.8,2461.7,2461.4,3.91276226]
[1730825521740,0.40634,2461.6,2461.4,3.91276226]
[1730825522137,0.07053085,2461.5,2461.4,3.91276226]
[1730825523032,7.11475384,2462.6,2461.4,3.91276226]
[1730825523232,7.11475384,2462.6,2461.1,1.436]
[1730825523233,0.40625,2462.1,2461.8,3.91276226]
[1730825523438,3.2078,2462.6,2461.8,3.91276226]
[1730825523439,40.87051614,2462.0,2461.8,3.91276226]
[1730825523637,0.40624,2462.2,2461.8,3.91276226]
[1730825523845,0.07051167,2462.1,2461.8,3.91276226]
[1730825524037,3.2078,2461.9,2461.2,3.91276226]
[1730825524238,0.07051167,2461.8,2461.2,3.91276226]
[1730825524434,1.75071167,2461.8,2461.3,3.61416]
[1730825524645,1.2739,2461.8,2461.4,0.40636]
[1730825525044,1.2739,2461.8,2461.3,3.2078]
[1730825525248,1.2739,2461.8,2461.3,3.61417]
[1730825525449,0.07052146,2461.7,2461.2,3.91276226]
[1730825525650,0.6456,2461.8,2461.3,3.2078]
[1730825525847,0.07052157,2461.7,2461.3,3.2078]
[1730825526147,0.40634,2461.5,2461.2,3.91276226]
[1730825526351,0.5896,2461.4,2461.2,3.91276226]
[1730825526641,0.40639,2461.2,2460.4,1.436]
[1730825526846,0.40647,2460.8,2460.4,3.91276226]
[1730825527045,0.99608,2460.7,2460.4,3.91276226]
[1730825527242,1.63348,2460.7,2460.4,3.91276226]
[1730825527848,0.4065,2460.6,2460.2,4.6438]
[1730825528040,1.227,2460.7,2460.2,4.6438]
[1730825528041,41.82371,2460.5,2460.2,4.6438]
[1730825528347,0.40653,2460.4,2460.1,3.91276226]
[1730825528540,41.82372,2460.5,2460.1,3.91276226]
[1730825528741,41.4172,2460.5,2460.1,3.91276226]
[1730825528956,41.82372,2460.5,2460.1,3.91276226]
[1730825529347,41.4172,2460.5,2460.1,3.91276226]
[1730825529543,41.82371,2460.5,2460.1,3.91276226]
[1730825530546,41.82371,2460.5,2460.4,4.31928226]
[1730825530547,0.6172,2460.5,2460.4,4.31928226]
[1730825530742,0.6172,2460.5,2460.4,7.52708226]
[1730825530943,0.6172,2460.5,2460.4,11.59108226]
[1730825531950,0.5896,2460.7,2460.6,0.40649]
[1730825532143,0.5918,2461.0,2460.6,4.064]
[1730825532350,0.5918,2461.0,2460.5,1.435]
[1730825532351,1.2426,2461.0,2460.8,0.40644]
[1730825532653,0.5918,2461.0,2460.7,4.31922226]
[1730825532842,42.0426,2461.0,2460.7,4.31922226]
[1730825533044,42.44903,2461.0,2460.7,3.91276226]
[1730825533248,0.40645,2460.9,2460.5,1.8415]
[1730825533448,42.0426,2461.0,2460.4,3.2078]
[1730825533746,3.2078,2460.9,2460.2,3.91276226]
[1730825533948,0.40645,2460.9,2460.5,0.4065]
[1730825534250,0.40645,2460.9,2460.4,7.12056226]
[1730825534454,0.6508,2460.8,2460.4,7.12056226]
[1730825534657,0.6508,2460.8,2460.5,0.4065]
[1730825534953,0.6508,2460.8,2460.6,0.40649]
[1730825535262,0.6508,2460.8,2460.5,0.4065]
[1730825535454,0.6508,2460.8,2460.6,0.40649]
[1730825536051,40.8,2461.0,2460.7,0.40646]
[1730825536355,40.8,2461.0,2460.7,0.40647]
[1730825536552,40.8,2461.0,2460.4,7.12056226]
[1730825536553,40.8,2461.0,2460.8,0.40645]
[1730825537050,41.20643,2461.0,2460.6,0.40649]
[1730825537245,40.8,2461.0,2460.7,0.40647]
[1730825537646,3.2078,2461.2,2460.8,0.40645]
[1730825537847,0.205,2462.0,2461.0,3.91276226]
[1730825538054,0.205,2462.0,2460.9,5.65891]
[1730825538055,0.6362,2462.3,2461.8,0.40628]
[1730825538257,40.8,2462.2,2461.8,0.40628]
[1730825538657,40.8,2462.2,2461.6,5.34776226]
[1730825538853,41.20623,2462.2,2461.7,0.4063]
[1730825539051,0.40625,2462.1,2461.6,5.75407226]
[1730825539253,3.2078,2462.1,2461.6,1.435]
[1730825539467,0.40628,2461.9,2461.6,1.435]
[1730825539758,0.6002,2461.8,2461.6,1.435]
[1730825539957,1.6348,2461.8,2461.6,1.435]
[1730825540355,1.2285,2461.8,2461.6,1.84132]
[1730825540553,1.2285,2461.8,2461.6,1.435]
[1730825541061,0.40631,2461.7,2461.6,1.435]
[1730825541351,1.2285,2461.8,2461.2,3.2078]
[1730825541552,0.40632,2461.7,2461.3,0.40637]
[1730825541759,1.2285,2461.8,2461.2,3.61418]
[1730825541952,41.20633,2461.6,2461.2,3.61418]
[1730825542353,0.40634,2461.5,2461.2,3.2078]
[1730825542551,0.40634,2461.5,2461.2,4.6428]
[1730825542954,40.8,2461.6,2461.2,4.6428]
[1730825543151,41.20633,2461.6,2461.2,5.04919]
[1730825543353,0.40635,2461.5,2461.2,4.6428]
[1730825544153,40.8,2461.6,2461.3,0.40638]
[1730825544352,40.8,2461.6,2461.2,4.6428]
[1730825545259,0.40634,2461.5,2461.2,4.6428]
[1730825545556,44.8624,2461.6,2461.2,3.2078]
[1730825545756,44.8624,2461.6,2460.6,0.04176]
[1730825545757,0.40638,2461.3,2460.9,3.2078]
[1730825545962,0.6122,2461.2,2461.0,0.40642]
[1730825546259,0.6122,2461.2,2460.9,3.2078]
[1730825546456,0.40635,2461.5,2461.1,4.31916226]
[1730825547062,40.8,2461.6,2461.3,0.40637]
[1730825547368,4.22632,2461.7,2461.1,3.91276226]
[1730825547559,3.82,2461.7,2461.1,3.91276226]
[1730825547757,40.8,2461.6,2461.3,0.40637]
[1730825547958,40.8,2461.6,2461.2,3.2078]
[1730825547959,41.20633,2461.6,2461.2,3.61418]
[1730825548263,40.8,2461.6,2461.1,4.53326226]
[1730825548462,0.40634,2461.5,2461.1,4.93966226]
[1730825548655,40.8,2461.6,2461.1,4.93966226]
[1730825548656,41.20632,2461.6,2461.2,0.40638]
[1730825548857,0.40635,2461.5,2461.1,4.31915226]
[1730825549161,0.40635,2461.5,2461.1,3.91276226]
[1730825549162,0.40634,2461.5,2461.1,3.91276226]
[1730825549661,0.40634,2461.5,2461.1,4.31914226]
[1730825549866,40.8,2461.6,2461.2,3.2078]
[1730825550069,40.8,2461.6,2461.3,0.40636]
[1730825550369,41.20633,2461.6,2461.2,0.40639]
[1730825550756,0.40635,2461.5,2461.2,0.40639]
[1730825550962,41.20634,2461.6,2461.2,0.40639]
[1730825551365,41.20634,2461.6,2461.2,3.61419]
[1730825552159,0.40636,2461.5,2461.2,3.2078]
[1730825552466,40.8,2461.6,2461.2,3.2078]
[1730825552662,0.40636,2461.4,2461.2,3.2078]
[1730825553264,0.40635,2461.5,2461.2,3.2078]
[1730825553664,4.0632,2461.5,2461.2,3.2078]
[1730825553873,3.2078,2461.3,2460.8,4.31922226]
[1730825554068,0.40639,2461.2,2460.8,4.31922226]
[1730825554267,0.99981,2461.1,2460.8,3.91276226]
[1730825554466,0.40644,2461.0,2460.8,3.91276226]
[1730825555368,0.5934,2461.1,2460.8,3.91276226]
[1730825555776,0.5934,2461.1,2460.9,0.40643]
[1730825556069,0.5934,2461.1,2460.8,3.91276226]
[1730825556259,0.5934,2461.1,2460.9,0.40644]
[1730825556462,0.5934,2461.1,2460.8,3.91276226]
[1730825556672,0.5934,2461.1,2461.0,0.40643]
[1730825557071,0.5934,2461.1,2460.9,0.40643]
[1730825557272,0.5934,2461.1,2460.8,4.31921226]
[1730825557467,0.5934,2461.1,2460.7,3.2078]
[1730825557468,0.40644,2461.0,2460.7,3.2078]
[1730825557872,0.5934,2461.1,2460.7,3.2078]
[1730825558063,0.5934,2461.1,2460.9,0.40644]
[1730825558676,0.5934,2461.1,2460.9,0.40643]
[1730825558867,0.5934,2461.1,2460.8,3.91276226]
[1730825558868,0.627,2461.2,2460.8,3.91276226]
[1730825559084,3.8553,2461.5,2461.3,0.40637]
[1730825559280,4.4619,2461.5,2461.3,0.40637]
[1730825560683,1.2541,2461.5,2461.2,0.40638]
[1730825560884,1.2541,2461.5,2461.3,0.40637]
[1730825561284,3.70195384,2462.2,2461.4,11.18296226]
[1730825561489,3.2078,2463.1,2461.4,11.18296226]
[1730825561490,0.205,2462.7,2462.1,7.12056226]
[1730825561786,5.27191934,2463.4,2461.4,26.73149033]
[1730825561787,0.21695951,2463.8,2462.6,7.12056226]
[1730825561981,1.2412,2463.9,2463.5,3.2078]
[1730825562183,3.2078,2463.8,2463.2,7.12056226]
[1730825562585,3.2078,2463.8,2462.9,7.12056226]
[1730825562781,42.0412,2463.9,2462.9,7.12056226]
[1730825562985,42.0412,2463.9,2463.2,3.2078]
[1730825563487,3.2078,2463.7,2462.9,3.2078]
[1730825563684,3.91276226,2463.2,2461.9,3.2078]
[1730825563883,3.91276226,2463.2,2462.2,3.2078]
[1730825563884,4.4062,2463.1,2462.2,3.2078]
[1730825565886,4.4062,2463.1,2461.9,3.2078]
[1730825565887,3.91276226,2462.9,2461.9,3.2078]
[1730825566087,3.91276226,2462.9,2462.2,3.2078]
[1730825567394,0.6529,2463.0,2462.2,3.2078]
[1730825567989,40.8,2462.8,2462.2,3.2078]
[1730825568182,40.8,2462.8,2462.2,3.25784]
[1730825570996,40.8,2462.8,2462.2,3.66407]
[1730825572099,40.8,2462.8,2462.2,3.25784]
[1730825572299,40.8,2462.8,2462.2,3.66406]
[1730825574104,41.20613,2462.8,2462.2,3.66406]
[1730825576296,41.20613,2462.8,2462.2,3.25784]
[1730825576494,0.40615,2462.7,2462.3,0.40621]
[1730825576891,0.6144,2462.6,2462.3,0.40621]
[1730825577295,1.02056,2462.6,2462.2,3.66406]
[1730825578802,0.6144,2462.6,2462.2,3.66406]
[1730825578998,0.40618,2462.5,2462.2,3.66406]
[1730825579597,1.02057,2462.6,2462.2,3.66406]
[1730825579796,3.8124,2463.1,2462.2,3.25784]
[1730825580096,0.40616,2462.7,2462.3,0.4062]
[1730825580297,40.8,2462.7,2462.6,0.40616]
[1730825580496,40.8,2462.7,2462.2,3.25784]
[1730825580497,0.5996,2462.9,2462.3,0.5986]
[1730825580699,0.5996,2462.9,2462.2,3.25784]
[1730825580900,0.40616,2462.6,2462.3,0.4062]
[1730825581595,40.8,2462.8,2462.2,3.25784]
[1730825581799,0.40619,2462.5,2462.2,3.25784]
[1730825582005,0.9949,2462.4,2462.2,3.25784]
[1730825582204,0.5887,2462.4,2462.2,3.25784]
[1730825582408,0.5887,2462.4,2462.2,3.66406]
[1730825582703,0.9949,2462.4,2462.2,3.25784]
[1730825582909,1.1846,2462.4,2462.2,3.66406]
[1730825583403,1.1846,2462.4,2462.3,0.40621]
[1730825583908,1.1846,2462.4,2462.2,3.25784]
[1730825584110,1.1846,2462.4,2462.2,3.66405]
[1730825584421,0.40621,2462.3,2462.2,3.25784]
[1730825584599,1.5908,2462.4,2462.2,3.25784]
[1730825584909,0.40621,2462.3,2462.2,3.25784]
[1730825585204,1.5908,2462.4,2462.2,3.25784]
[1730825585811,1.1846,2462.4,2462.2,3.25784]
[1730825586007,1.5908,2462.4,2462.2,3.25784]
[1730825586197,1.5908,2462.4,2462.2,0.05004]
[1730825586198,0.40621,2462.3,2462.2,0.05004]
[1730825586406,4.46781,2462.3,2462.2,0.05004]
[1730825586698,4.46781,2462.3,2461.5,3.2078]
[1730825586699,4.0616,2462.3,2461.5,3.2078]
[1730825586905,0.4063,2461.8,2461.5,3.61414]
[1730825587101,0.6231,2461.7,2461.6,0.40632]
[1730825587416,41.4231,2461.7,2461.6,0.40632]
[1730825587910,41.4231,2461.7,2461.5,3.2078]
[1730825588114,41.4231,2461.7,2461.5,3.61414]
[1730825588313,41.4231,2461.7,2461.5,3.2078]
[1730825588912,41.4231,2461.7,2461.5,3.61414]
[1730825589306,41.4231,2461.7,2461.5,3.2078]
[1730825590502,41.4231,2461.7,2461.5,3.61414]
[1730825590701,0.6231,2461.7,2461.6,0.40633]
[1730825590901,0.40628,2461.9,2461.5,3.61413]
[1730825591107,0.40628,2461.9,2461.5,3.2078]
[1730825591311,41.2063,2461.8,2461.5,3.2078]
[1730825591907,41.2063,2461.8,2461.5,3.61414]
[1730825592707,40.8,2461.8,2461.5,3.61414]
[1730825593108,41.20629,2461.8,2461.5,3.61414]
[1730825593919,0.40632,2461.7,2461.5,3.2078]
[1730825594116,1.04842,2461.7,2461.5,3.2078]
[1730825594710,0.6421,2461.7,2461.5,3.61414]
[1730825595713,0.6421,2461.7,2461.5,3.2078]
[1730825595918,1.04841,2461.7,2461.5,3.2078]
[1730825596321,0.6421,2461.7,2461.5,3.2078]
[1730825597123,0.40633,2461.6,2461.5,3.2078]
[1730825597311,0.40638,2461.3,2461.2,3.2078]
[1730825597518,0.40638,2461.3,2460.2,2.56891264]
[1730825597519,0.4064,2461.2,2460.9,0.40643]
[1730825598015,0.4064,2461.2,2460.8,3.2078]
[1730825598417,0.40642,2461.1,2460.8,3.2078]
[1730825598612,4.40324731,2461.5,2460.8,3.2078]
[1730825598819,0.40642,2461.1,2460.8,3.2078]
[1730825599024,0.4064,2461.2,2460.8,3.2078]
[1730825599223,0.6421,2461.7,2461.4,0.40635]
[1730825599423,0.6421,2461.7,2461.5,0.40634]
[1730825599619,0.6421,2461.7,2461.4,3.2078]
[1730825599822,0.6421,2461.7,2461.4,3.61416]
[1730825600317,0.6421,2461.7,2461.4,3.2078]
[1730825600517,1.04842,2461.7,2461.4,3.2078]
[1730825601126,1.04842,2461.7,2461.4,3.61416]
[1730825601726,0.6421,2461.7,2461.4,3.61416]
[1730825602221,40.8,2461.8,2461.7,0.40631]
[1730825602422,4.25074,2462.2,2461.7,0.40631]
[1730825602423,0.40625,2462.1,2461.7,0.4063]
[1730825602625,3.2078,2462.2,2461.5,0.6282]
[1730825602820,0.40626,2462.1,2461.5,0.6282]
[1730825603020,0.40626,2462.1,2461.7,0.4063]
[1730825603228,0.40626,2462.1,2461.6,0.99572]
[1730825603425,44.0078,2462.2,2461.6,0.99572]
[1730825603426,0.40626,2462.0,2461.6,0.99572]
[1730825603726,0.40628,2461.9,2461.5,0.40633]
[1730825604116,44.0078,2462.2,2461.5,4.0624]
[1730825604317,0.40619,2462.5,2462.0,3.2078]
[1730825604820,0.40619,2462.5,2462.0,4.20345]
[1730825604821,40.8,2462.4,2462.0,4.20345]
[1730825605017,40.8,2462.4,2462.1,0.40624]
[1730825605422,40.8,2462.4,2462.0,4.20345]
[1730825605923,40.8,2462.4,2462.1,0.40623]
[1730825607422,40.8,2462.4,2462.3,3.61401]
[1730825607621,0.4061,2463.0,2462.3,3.2078]
[1730825607821,1.75329,2463.1,2462.6,3.61395]
[1730825608123,40.8,2462.9,2462.6,3.61395]
[1730825608622,1.75329,2463.1,2462.6,3.61395]
[1730825608832,3.16994731,2463.0,2462.6,3.2078]
[1730825609021,3.16994731,2463.0,2462.0,0.5894]
[1730825609022,40.8,2462.9,2462.1,3.2078]
[1730825609327,0.40615,2462.7,2462.2,0.40622]
[1730825609525,40.8,2462.9,2462.1,3.2078]
[1730825610018,0.40621,2462.4,2462.1,3.2078]
[1730825610223,0.40623,2462.2,2462.1,3.2078]
[1730825610414,0.40623,2462.2,2461.8,3.61408]
[1730825611017,1.3501,2462.5,2461.8,3.2078]
[1730825611222,3.2078,2462.4,2461.8,3.2078]
[1730825611424,0.40627,2462.0,2461.8,3.2078]
[1730825612126,3.8875,2462.4,2461.8,3.2078]
[1730825612423,0.40626,2462.0,2461.8,3.2078]
[1730825613220,3.8875,2462.4,2461.8,3.2078]
[1730825613428,0.40626,2462.0,2461.8,3.2078]
[1730825614933,0.40627,2462.0,2461.8,3.2078]
[1730825615322,0.40631,2461.8,2461.3,0.40637]
[1730825615523,0.6968,2461.9,2461.2,1.10288]
[1730825615727,0.7186,2461.7,2461.2,0.6965]
[1730825615930,40.8,2461.6,2461.5,0.40634]
[1730825616124,0.6968,2461.9,2461.4,3.2078]
[1730825616330,0.6968,2461.9,2461.6,0.40632]
[1730825616331,1.10308,2461.9,2461.6,0.40632]
[1730825616721,40.8,2461.8,2461.6,0.40632]
[1730825617319,40.8,2461.8,2461.4,3.2078]
[1730825617320,40.8,2461.8,2461.7,0.40631]
[1730825617528,0.7186,2462.0,2461.7,0.40631]
[1730825617727,0.40628,2461.9,2461.7,0.40631]
[1730825619030,0.40628,2461.9,2461.6,0.40632]
[1730825620436,0.40628,2461.9,2461.6,3.61412]
[1730825620732,41.5186,2462.0,2461.7,0.40631]
[1730825620931,3.2078,2462.6,2461.9,3.2078]
[1730825621131,0.4062,2462.4,2462.0,0.40625]
[1730825621328,0.40622,2462.3,2462.0,0.40625]
[1730825621528,41.20622,2462.3,2462.0,0.40625]
[1730825622427,41.20622,2462.3,2462.1,0.40624]
[1730825622629,40.8,2462.3,2462.2,3.61403]
[1730825623625,40.8,2462.3,2462.2,3.2078]
[1730825625035,0.40618,2462.5,2462.2,3.61403]
[1730825625422,40.8,2462.4,2462.2,3.61403]
[1730825625627,41.20619,2462.4,2462.2,3.2078]
[1730825626034,0.40621,2462.3,2462.2,3.2078]
[1730825626433,40.8,2462.4,2461.9,3.2078]
[1730825626636,0.40623,2462.2,2461.9,3.61407]
[1730825627226,0.40622,2462.3,2462.0,0.40626]
[1730825627629,40.8,2462.4,2461.9,3.2078]
[1730825627831,0.40622,2462.3,2462.0,0.40626]
[1730825628639,0.40623,2462.2,2461.9,3.61407]
[1730825628933,0.6984,2462.2,2461.9,3.2078]
[1730825629136,0.6984,2462.2,2462.0,0.40625]
[1730825631430,0.6984,2462.2,2461.9,3.2078]
[1730825631640,1.10464,2462.2,2461.9,3.61407]
[1730825632437,0.6984,2462.2,2462.0,0.40625]
[1730825635243,1.10463,2462.2,2461.9,3.61407]
[1730825635849,3.9062,2462.2,2461.6,3.2078]
[1730825636144,0.40631,2461.7,2461.6,3.2078]
[1730825637444,0.4063,2461.8,2461.6,3.2078]
[1730825637840,4.92179,2462.2,2461.6,3.2078]
[1730825638438,0.4063,2461.8,2461.6,3.2078]
[1730825638939,4.92179,2462.2,2461.6,3.2078]
[1730825639142,0.40631,2461.7,2461.6,3.2078]
[1730825639541,4.46871,2461.7,2461.6,3.2078]
[1730825639938,0.4063,2461.8,2461.6,3.2078]
[1730825640140,0.7567,2462.0,2461.7,3.16996715]
[1730825640440,0.7567,2462.0,2461.8,0.40629]
[1730825641241,0.7567,2462.0,2461.7,3.89416715]
[1730825641242,0.7567,2462.0,2461.9,0.40628]
[1730825641440,0.6984,2462.2,2461.9,3.2078]
[1730825641648,1.10463,2462.2,2461.9,0.40628]
[1730825642642,0.7742,2462.3,2461.9,6.37776715]
[1730825642837,0.7742,2462.3,2462.1,0.40624]
[1730825643449,0.7742,2462.3,2461.9,6.37776715]
[1730825643957,1.18043,2462.3,2461.9,3.2078]
[1730825644255,0.7742,2462.3,2462.0,0.40625]
[1730825645257,0.7742,2462.3,2461.9,3.2078]
[1730825645545,1.18041,2462.3,2461.9,3.61406]
[1730825645947,0.40623,2462.2,2461.9,3.2078]
[1730825646150,0.40625,2462.1,2461.9,3.2078]
[1730825646341,1.15285,2462.1,2461.9,3.2078]
[1730825646546,0.7466,2462.1,2461.9,3.2078]
[1730825646946,0.7466,2462.1,2461.8,0.40628]
[1730825647847,1.15284,2462.1,2461.7,0.7242]
[1730825648048,1.15284,2462.1,2461.8,0.40629]
[1730825648657,0.7466,2462.1,2461.6,3.2078]
[1730825648858,0.40627,2462.0,2461.6,3.61412]
[1730825649151,0.7466,2462.1,2461.6,3.2078]
[1730825649348,0.7114,2462.0,2461.6,3.2078]
[1730825649543,0.40631,2461.7,2461.6,3.2078]
[1730825650955,4.0624,2461.7,2461.2,3.2078]
[1730825651157,3.16996715,2461.8,2461.2,3.2078]
[1730825651359,1.12653,2461.6,2461.3,0.40637]
[1730825651753,0.7202,2461.6,2461.3,0.40637]
[1730825652153,1.12653,2461.6,2461.3,0.40637]
[1730825652352,1.12653,2461.6,2461.2,3.2078]
[1730825652353,0.40634,2461.5,2461.2,3.61419]
[1730825652556,0.7202,2461.6,2461.2,3.61419]
[1730825652557,1.12653,2461.6,2461.2,3.61419]
[1730825652761,0.7202,2461.6,2461.3,0.40637]
[1730825652970,0.7202,2461.6,2461.3,0.40636]
[1730825653564,1.16412,2461.7,2461.3,3.16996715]
[1730825653565,0.7578,2461.7,2461.3,3.16996715]
[1730825653767,0.7578,2461.7,2461.5,0.40633]
[1730825655163,0.7578,2461.7,2461.4,0.7124]